Cogmind - Beta 16.1 @@@ ROGUE MODE // 2026.03.30 @ 03:46:57 Player: KURIIRI Result: Destroyed by BQ-A65(R) with Subdweller Laser Performance ------------- Evolutions (0) 0 Regions Visited (2) 400 Robots Destroyed (25) 125 Value Destroyed (461) 461 Prototype IDs (2) 40 Alien Tech Used (0) 0 Bonus (0) 0 TOTAL SCORE: 1026 Bonus ------- None Cogmind --------- Core Integrity 0/250 Matter 300/300 Energy 100/100 System Corruption 0% Temperature Cool (6) Movement Rolling (115) Ox1 Location -10/Subcaves Parts ------- > --- POWER (1) -------- (None) > --- PROPULSION (2) --- Compact Wheel > --- UTILITY (2) ------ Large Storage Unit > --- WEAPON (2) ------- Hammer > --- INVENTORY (15) --- Ion Engine Light Ion Engine Wheel Compact Wheel Small Storage Unit Huge Storage Unit Large Matter Pod (150) Hacking Suite Hacking Suite Assault Rifle Assault Rifle Assault Rifle Peak State ------------ > --- POWER ------------ Light Ion Engine > --- PROPULSION ------- Light Treads Light Treads > --- UTILITY ---------- Large Storage Unit Improved Terrain Scanner > --- WEAPON ----------- Beam Cannon Assault Rifle > --- INVENTORY -------- Ion Engine Wheel Compact Wheel Small Storage Unit Hacking Suite EM Pulse Gun Assault Rifle Assault Rifle [Rating: 10] Favorites ----------- Power Ion Engine Engine Ion Engine Propulsion Light Treads Treads Light Treads Leg Aluminum Leg Wheel Compact Wheel Utility Large Storage Unit Device Improved Terrain Scanner Storage Large Storage Unit Weapon Assault Rifle Energy Gun EM Pulse Gun Energy Cannon Beam Cannon Ballistic Gun Assault Rifle Impact Weapon Hammer Build | -11 -10 -10 ------- Run | Yrd Mat Sub Slots Evolved . | . . . Power . | . . . Propulsion . | . . . Utility . | . . . Weapon . | . . . Parts Attached 9 | 3 4 2 Power 1 | . 1 . Engine 1 | . 1 . Core . | . . . Reactor . | . . . Propulsion 3 | 2 . 1 Treads 2 | 2 . . Leg . | . . . Wheel 1 | . . 1 Hover . | . . . Flight . | . . . Utility 2 | 1 1 . Device 1 | 1 . . Storage 1 | . 1 . Processor . | . . . Hackware . | . . . Protection . | . . . Artifact . | . . . Weapon 3 | . 2 1 Energy Gun 1 | . 1 . Energy Cannon 1 | . 1 . Ballistic Gun . | . . . Ballistic Cannon . | . . . Launcher . | . . . Special Weapon . | . . . Impact Weapon 1 | . . 1 Slashing Weapon . | . . . Piercing Weapon . | . . . Special Melee Weapon . | . . . Unidentified Prototypes . | . . . Parts Lost 7 | . 1 6 Power 1 | . . 1 Propulsion 2 | . . 2 Utility 1 | . . 1 Weapon 3 | . 1 2 Highest Loss Streak 6 | . 1 6 To Critical Strikes . | . . . Average Backups 10 | 5 10 12 Power 1 | 1 1 2 Propulsion 2 | 3 2 2 Utility 3 | . 2 5 Weapon 3 | 1 3 3 Tool/Special . | . . . Unused Backups 9 | . . 9 Power 1 | . . 1 Propulsion 1 | . . 1 Utility 5 | . . 5 Weapon 2 | . . 2 Tool/Special . | . . . Average Slot Usage (%) 88 | . 100 43 Engine 11 | . 14 . Treads 23 | . 28 5 Wheel 1 | . . 6 Device 11 | . 14 1 Storage 14 | . 14 14 Energy Gun 4 | . 5 . Energy Cannon 7 | . 8 . Ballistic Gun 11 | . 14 . Impact Weapon 2 | . . 13 Peak Build Rating 10 | 9 10 10 Average Rating 8 | 7 9 4 On Entrance 8 | 6 9 10 Avg Prop Armor Cover (%) . | . . . Naked Turns . | . . . Heaviest Build 31 | 13 31 30 Greatest Support 40 | 40 40 40 Greatest Overweight (x) 7 | . . 7 Average Overweight (x) . | . . 1 Largest Inventory Capacity 15 | 8 15 15 Average Capacity 14 | 8 14 15 Most Carried 15 | 6 15 14 Average Carried 11 | 5 10 12 Final Capacity 15 | 8 15 15 Final Carried 14 | 4 14 12 Class Distribution -------------------- 100% | Mutant Dominant Class ---------------- Mutant | -10/Materials Mutant | -10/Subcaves Resources | -11 -10 -10 ----------- Run | Yrd Mat Sub Matter Collected 573 | 220 329 24 Remotely . | . . . Salvage Created 733 | 120 531 82 Parts 42 | 7 35 . Haulers Intercepted 1 | . 1 . Recyclers Shooed . | . . . Parts Field Recycled . | . . . Retrieved Matter . | . . . Parts Self-Destructed . | . . . Prevented . | . . . Parts Restored . | . . . Kills | -11 -10 -10 ------- Run | Yrd Mat Sub Combat Hostiles Destroyed 19 | . 17 2 Melee 1 | . . 1 Guns 5 | . 5 . Cannons 12 | . 12 . Classes Destroyed 8 | 2 5 1 Tunneler 1 | 1 . . Hauler 1 | . 1 . Recycler 1 | 1 . . Operator 2 | . 2 . Watcher 1 | . 1 . Swarmer 11 | . 11 . Grunt 6 | . 6 . Subdweller 2 | . . 2 Best Kill Streak 5 | 2 5 1 Combat Bots Only 5 | . 5 1 Max Kills in Single Turn 2 | 1 2 1 Gunslinging . | . . . Exploded . | . . . Melee 1 | . . 1 Uniques/NPCs Destroyed . | . . . Combat | -11 -10 -10 -------- Run | Yrd Mat Sub Hostile Shots Fired 86 | . 45 41 Missed 22 | . 15 7 Hits 64 | . 30 34 Projectile 64 | . 30 34 Damage Taken 995 | . 305 690 Core 258 | . 19 239 Absorbed by Shields . | . . . Core Remaining (%) 100 | 100 . . Volleys Fired 46 | 4 39 3 Largest 2 | 2 2 2 Hottest 80 | 60 80 60 Shots Fired 92 | 8 78 6 Gun 54 | 8 40 6 Cannon 38 | . 38 . Launcher . | . . . Special . | . . . Kinetic 46 | 4 39 3 Thermal 38 | . 38 . Explosive . | . . . Electromagnetic 8 | 4 1 3 Robot Hit Streak 7 | 3 7 6 Robot Miss Streak 3 | 1 3 1 Penetration Max . | . . . Secondary Targets . | . . . Shots Hit Robots 62 | 5 40 17 Core Hits 28 | 3 23 2 Critical Kills . | . . . Critical Parts Destroyed 1 | . . 1 Critical Strikes 1 | . . 1 Smash 1 | . . 1 Melee Attacks 16 | . . 16 Impact 16 | . . 16 Slashing . | . . . Piercing . | . . . Sneak Attacks . | . . . Combat Hostiles . | . . . Follow-up Attacks . | . . . Damage Inflicted 1096 | 63 693 340 Guns 370 | 63 234 73 Cannons 459 | . 459 . Explosions . | . . . Melee 267 | . . 267 Ramming . | . . . Kinetic 269 | 12 219 38 Thermal 459 | . 459 . Explosive . | . . . Electromagnetic 101 | 51 15 35 Impact 267 | . . 267 Slashing . | . . . Piercing . | . . . Highest Corruption . | . . . Average Corruption . | . . . Corruption Purged . | . . . Corruption Blocked . | . . . Overload Shots . | . . . Overflow Damage 17 | . . 17 Projectiles . | . . . Explosions . | . . . Melee 17 | . . 17 Knockbacks 1 | . . 1 Impact 1 | . . 1 Kinetic . | . . . Secondary . | . . . Self-Inflicted Damage . | . . . Shots . | . . . Rammed . | . . . Targets Rammed . | . . . Kicked . | . . . Crushed . | . . . Highest Temperature 108 | . 108 . Average Temperature 34 | . 34 . Received Heat Transfer 246 | . 42 204 Siege Activations . | . . . Martial Activations . | . . . Shielding Activations . | . . . Robots Disrupted . | . . . Combat Hostiles . | . . . Robots Corrupted 1 | . . 1 Combat Hostiles 1 | . . 1 Parts Fried . | . . . Impact Corruptions 1 | . . 1 Robots Melted . | . . . Combat Hostiles . | . . . Parts Melted . | . . . Heat Transferred 925 | . 925 . Parts Sabotaged . | . . . Parts Stolen . | . . . Parts Stripped . | . . . Power Chain Reactions . | . . . Alert | -11 -10 -10 ------- Run | Yrd Mat Sub Maximum Alert Level 1 | . 1 . Low Security (%) 77 | 100 76 . Level 1 22 | . 23 . Level 2 . | . . . Level 3 . | . . . Level 4 . | . . . Level 5 . | . . . High Security . | . . . Max Security . | . . . Peak Influence 303 | 10 303 . Initial . | . . . Average 105 | 4 107 . Influence Increases 601 | 10 591 . Destroy 0b10 Robot/C 340 | . 340 . Destroy 0b10 Robot/NC 25 | 10 15 . Destroy Leader 64 | . 64 . Successful Hack 37 | . 37 . Select Force Hacks 30 | . 30 . Disable Machine 30 | . 30 . Lose Combat Pursuer 75 | . 75 . Influence Decreases 601 | 10 553 38 Entered New Map 19 | . . 19 Time Decay 403 | 10 393 . Lost Part 29 | . 10 19 Purge Threat 150 | . 150 . Squads Dispatched 4 | . 4 . Investigation 4 | . 4 . Extermination . | . . . Reinforcement . | . . . Assault . | . . . Garrison . | . . . Intercept . | . . . Searches Triggered . | . . . Construction Impeded . | . . . Haulers Reinforced . | . . . Active Scanning Responses . | . . . Cargo Convoy Interrupts . | . . . Stealth | -11 -10 -10 --------- Run | Yrd Mat Sub Distress Signals 5 | . 5 . Communications Jammed . | . . . Distress Signals . | . . . Times Spotted 33 | . 29 4 Peak Tracking Total 7 | . 7 2 Tactical Retreats 2 | . 2 . Traps | -11 -10 -10 ------- Run | Yrd Mat Sub Traps Triggered 3 | . 3 . Indirectly . | . . . Trap Hack Attempts . | . . . Triggered . | . . . Disarmed . | . . . Reprogrammed . | . . . Reused . | . . . Traps Extracted . | . . . Installed . | . . . Triggered . | . . . Machines | -11 -10 -10 ---------- Run | Yrd Mat Sub Machines Disabled 2 | . 2 . Max in Single Turn 1 | . 1 . Machines Repaired . | . . . Machines Dismantled . | . . . Machines Sabotaged . | . . . Overloaded Fab Kills . | . . . Hacking | -11 -10 -10 --------- Run | Yrd Mat Sub Machines Accessed 9 | . 9 . Terminals 7 | . 7 . Fabricators . | . . . Repair Stations . | . . . Recycling Units 2 | . 2 . Scanalyzers . | . . . Garrison Access . | . . . Total Hacks 34 | . 34 . Successful 22 | . 22 . Failed 11 | . 11 . Catastrophic 1 | . 1 . Database Lockouts 1 | . 1 . Manual 24 | . 24 . Terminals 30 | . 30 . Fabricators . | . . . Repair Stations . | . . . Recycling Units 4 | . 4 . Scanalyzers . | . . . Garrison Access . | . . . Terminal Hacks 13 | . 13 . Robot Analysis 5 | . 5 . Prototype ID Bank 1 | . 1 . Unreport Threat 1 | . 1 . Dispatch Records 1 | . 1 . Surveillance Status 1 | . 1 . Hauler Manifests 1 | . 1 . Registered Components 1 | . 1 . Zone Layout 2 | . 2 . Fabricator Hacks . | . . . Repair Station Hacks . | . . . Recycling Unit Hacks . | . . . Scanalyzer . | . . . Garrison Access Hacks . | . . . Unauthorized Hacks 9 | . 9 . Terminals 8 | . 8 . Assimilate 1 | . 1 . Botnet 2 | . 2 . Skim 5 | . 5 . Fabricators . | . . . Repair Stations . | . . . Recycling Units 1 | . 1 . Tunnel 1 | . 1 . Scanalyzers . | . . . Garrison Access . | . . . Data Cores Recovered 1 | . 1 . Used 1 | . 1 . Hacking Detections 7 | . 7 . Full Trace Events 1 | . 1 . Feedback Events . | . . . Feedback Blocked . | . . . Robot Schematics Acquired . | . . . Robots Built . | . . . Authchips . | . . . Time . | . . . Total Robot Build Rating . | . . . Part Schematics Acquired . | . . . Parts Built . | . . . Authchips . | . . . Time . | . . . Total Part Build Rating . | . . . Part Studies Acquired . | . . . Parts Repaired . | . . . Time . | . . . Parts Recycled . | . . . Recycled Matter . | . . . Retrieved Matter . | . . . Retrieved Components . | . . . Parts Scanalyzed . | . . . Part Schematics Acquired . | . . . Parts Damaged . | . . . Bothacking | -11 -10 -10 ------------ Run | Yrd Mat Sub Used RIF Installer . | . . . Robots Hacked . | . . . Non-combat . | . . . Combat . | . . . Robot Hacks Applied . | . . . Relay Couplers Released . | . . . Fabnet Peak Effective % . | . . . Robots Rewired . | . . . Allies Hacked . | . . . Hacks Repelled . | . . . Allies | -11 -10 -10 -------- Run | Yrd Mat Sub Total Allies 1 | . 1 . Largest Group 1 | . 1 . Highest-Rated Group 10 | . 10 . Highest-Rated Ally 10 | . 10 . Total Orders 3 | . 3 . STAY 2 | . 2 . FOLLOW 1 | . 1 . Ally Attacks . | . . . Total Damage . | . . . Kills . | . . . Allies Corrupted . | . . . Allies Melted . | . . . Intel | -11 -10 -10 ------- Run | Yrd Mat Sub Active Infowar (turns) 1227 | 9 1195 23 Terrain 1227 | 9 1195 23 Robot Analysis Total 5 | . 5 . Derelict Logs Recovered 1 | . . 1 Drone Launches . | . . . Drone Recoveries . | . . . Exploration | -11 -10 -10 ------------- Run | Yrd Mat Sub Turns Passed 1520 | 24 1195 301 Spaces Moved 731 | 6 571 154 Core 22 | . . 22 Treads 584 | 3 571 10 Legs 3 | 3 . . Wheels 122 | . . 122 Hover . | . . . Flight . | . . . Fastest Speed 115 | 120 160 115 Average Speed 159 | 140 160 159 Slowest Speed 400 | 160 160 400 Overloaded Moves . | . . . Propulsion Burnouts . | . . . Robots Hopped . | . . . Potential Cave-ins . | . . . Cave-ins Triggered . | . . . Exploration Rate (%) 36 | 3 94 12 Regions Visited 2 Branch Regions 1 Pre-discovered Areas 2 | . 2 . Known Exits Taken 1 | . 1 . Unknown Exits Taken 1 | 1 . . Scrap Searched . | . . . Spaces Dug . | . . . Terrain Destroyed . | . . . Melee . | . . . Projectile . | . . . AOE . | . . . Terrain Rammed . | . . . Walls Destroyed . | . . . Machines Disabled . | . . . Actions | -11 -10 -10 --------- Run | Yrd Mat Sub Total 963 | 14 774 175 Wait 152 | . 152 . Move 729 | 5 570 154 Hop . | . . . Pick Up 8 | . 8 . Fast Attach 2 | 1 1 . Attach 5 | 2 1 2 Detach 1 | . 1 . Swap 2 | . 2 . Drop 2 | 2 . . Fire 46 | 4 39 3 Melee 16 | . . 16 Ram . | . . . Kick . | . . . Crush . | . . . Escape Stasis . | . . . Rewire . | . . . Trap . | . . . Miscellaneous . | . . . Route ------- -11/Scrapyard -10/Materials (discovered 6 exits: *Mat x3 / [*Min x2] / *Sub) -10/Subcaves (discovered 2 exits: Mat x2) History --------- Turn | Location | Event 14 | -11/Scrapyard | Discovered new exit (range 3) 25 | -11/Scrapyard | Entered Materials 127 | -10/Materials | Discovered new exit (range 14) 213 | -10/Materials | Discovered new exit (range 15) 289 | -10/Materials | Central database locked down 301 | -10/Materials | Build established: Mutant 449 | -10/Materials | Identified exit to Materials 514 | -10/Materials | Learned location of Mines (-10) 568 | -10/Materials | Learned location of 2 exits from Materials 611 | -10/Materials | Learned location of 2 exits from Subcaves 670 | -10/Materials | Learned 2 Mines zone layouts 705 | -10/Materials | Loaded intel: 1 repair station location 750 | -10/Materials | Learned Storage stockpile data 754 | -10/Materials | Discovered new exit (range 6) 805 | -10/Materials | Identified exit to Subcaves 1025 | -10/Materials | Derelicts attacked the area 1220 | -10/Materials | Entered Subcaves 1221 | -10/Subcaves | Ambushed by Subdwellers from Twisted Machinery 1221 | -10/Subcaves | Identified exit to Materials 1278 | -10/Subcaves | Core integrity fell below 50% 1313 | -10/Subcaves | Lost 6 parts (1p2n1u2w) 1513 | -10/Subcaves | Core integrity fell below 20% 1521 | -10/Subcaves | Destroyed by BQ-A65(R) with Subdweller Laser Last Messages --------------- 01232_ V6-0JS(R) misfires. 01233_ V6-0JS(R) system terminally corrupted. 01235_ Acquired 14 matter. 01236_ GZ-2GU(R) affixes Scrap Shield Fragment to Scrap Shield. 01237_ Ion Engine destroyed. 01239_ EM Pulse Gun destroyed. 01241_ GZ-2GU(R) misfires. 01242_ GZ-2GU(R) knocked back. 01243_ Imp. Terrain Scanner destroyed. 01262_ GZ-2GU(R) affixes Scrap Shield Fragment to Scrap Shield. 01273_ Lgt. Treads destroyed. 01289_ GZ-2GU(R) destroyed. 01352_ Acquired derelict log, extracted data. Data stored: Storage entrances (x1). 01385_ Acquired 10 matter. 01512_ M4-IY2(R): "SUBMAD!" 01518_ Subatomizers dissect the Cobbler Unit, destroying it. Map ----- +----------------------------------------------------+ | ?????????????????????### ##?##### | | ???????????????????????# # ## ##??????? | | ??????????????????????# # #### ##???????? | | ??????????????????????# # # #??## #????????? | | ????????????????????? # # ##??## #????????? | | ????????????????????## ## # ##??###????????? | | ?????????????????????### #?????????????? | | ???????????????????????### ##?????????????? | | ?????????????????????????## " "##??????????????? | | ??????????????????????????## "##???????????????? | | ???????????????????????????# "#????????????????? | | ?????????????????????####### "#????????????????? | | ???????????????????### ####????????????????? | | ?????????????????### #???????????????????? | | ????????####????## ##??????????????????? | | ?????? ## #???# ## #???????